[Event "360 One Wealth GP-4 2024"]
[Site "Mumbai"]
[Date "2024.03.17"]
[Round "7.2"]
[White "Soni Atharv"]
[Black "Arnav Mahesh Koli"]
[Result "1-0"]
[ECO "B52"]
[WhiteElo "1684"]
[BlackElo "1857"]
[Annotator "NA RC"]
[PlyCount "131"]
[EventDate "2024.03.10"]
[EventCountry "IND"]
[SourceTitle "playchess.com"]
[Source "ChessBase"]
[SourceQuality "1"]
[TimeControl "5400+30"]

1. e4 {[%emt 0:00:01]} c5 {[%emt 0:00:06]} 2. Nf3 {[%emt 0:00:05]} d6 {[%emt 0:00:03]} 3. Bb5+ {[%emt 0:00:15]} Bd7 {[%emt 0:00:06]} 4. Bxd7+ {[%emt 0:00:07]} Qxd7 {[%emt 0:00:05]} 5. O-O {[%emt 0:01:07]} g6 {[%emt 0:00:14]} 6. c4 {[%emt 0:01:35]} Bg7 {[%emt 0:01:00]} 7. d4 {[%emt 0:00:56]} cxd4 {[%emt 0:01:08]} 8. Nxd4 {[%emt 0:00:09]} Nf6 {[%emt 0:06:30]} 9. Nc3 {[%emt 0:06:40]} Nc6 {[%emt 0:00:00]} 10. Be3 {[%emt 0:03:05]} Ng4 {[%emt 0:09:14] B52: Sicilian: Moscow Variation with 3...Bd7.} 11. Nxc6 {[%emt 0:09:37]} Nxe3 {[%emt 0:00:00]} 12. fxe3 {[%emt 0:00:21]} bxc6 {[%emt 0:00:00]} 13. Qd3 {[%emt 0:02:37]} O-O {[%emt 0:00:00]} 14. Rac1 {[%emt 0:02:59]} Kh8 {[%emt 0:00:00]} (14... Qe6 $15 {feels stronger.}) 15. Rc2 {[%emt 0:04:55]} e5 {[%emt 0:00:00]} ({Black should try} 15... Rab8 $15) 16. c5 {[%emt 0:06:08]} Rad8 {[%emt 0:03:07]} 17. Rd2 {[%emt 0:03:40]} f5 {[%emt 0:12:47]} (17... Rfe8 $14) 18. cxd6 {[%emt 0:10:21]} Rf6 {[%emt 0:00:00]} 19. Qc2 {[%emt 0:05:58]} Bh6 {[%emt 0:00:00]} 20. Rf3 {[%emt 0:03:32]} f4 $1 {[%emt 0:00:00]} 21. exf4 {[%emt 0:08:16]} Bxf4 {[%emt 0:04:10]} 22. Rdd3 {[%emt 0:03:09]} Rxd6 {[%emt 0:00:00]} 23. Rxd6 {[%emt 0:00:01]} Qxd6 {[%emt 0:00:27]} 24. g3 {[%emt 0:02:46]} Qd4+ {[%emt 0:04:10]} 25. Kg2 {[%emt 0:00:00]} Bh6 {[%emt 0:00:54]} 26. Rf2 {[%emt 0:00:00]} Be3 {[%emt 0:12:47]} 27. Re2 {[%emt 0:05:07]} Rf8 {[%emt 0:00:00]} 28. Nd1 {[%emt 0:04:31]} Bh6 {[%emt 0:00:41]} (28... Bg5 $11) 29. Nf2 {[%emt 0:00:00]} c5 {[%emt 0:10:02]} 30. Nd3 {[%emt 0:02:55]} c4 {[%emt 0:03:08]} 31. Ne1 {[%emt 0:00:00]} Qc5 {[%emt 0:07:31]} 32. Nf3 {[%emt 0:00:00]} Qc7 {[%emt 0:01:08]} 33. Qc3 {[%emt 0:00:55]} Bg7 {[%emt 0:00:52]} 34. b3 {[%emt 0:00:00]} Rc8 {[%emt 0:01:41]} 35. Rc2 {[%emt 0:00:00]} Qb7 {[%emt 0:00:26]} 36. Nd2 {[%emt 0:00:00]} Rc5 {[%emt 0:02:25]} 37. bxc4 {[%emt 0:00:00]} Bh6 {[%emt 0:00:34]} 38. Qd3 {[%emt 0:00:00]} Rc7 {[%emt 0:01:34]} 39. Nf3 {[%emt 0:00:23]} Rd7 {[%emt 0:01:49]} 40. Qc3 {[%emt 0:00:45]} Qxe4 {[%emt 0:01:13]} 41. Qxe5+ {[%emt 0:00:05]} Qxe5 {[%emt 0:00:04]} 42. Nxe5 {[%emt 0:00:02]} Re7 {[%emt 0:00:12]} 43. Nc6 {[%emt 0:01:19]} Rc7 {[%emt 0:00:11]} 44. Nb4 {[%emt 0:00:52]} Kg7 {[%emt 0:02:01]} (44... Bf8 $18 45. Nd3 Kg7) 45. Kf3 {[%emt 0:01:29]} Kf7 {[%emt 0:00:00]} 46. Ke4 {[%emt 0:00:43]} Ke6 {[%emt 0:00:00]} 47. c5 {[%emt 0:00:48]} Bf8 {[%emt 0:00:00]} 48. Kd4 {[%emt 0:02:11]} a5 {[%emt 0:01:45]} 49. Nd5 {[%emt 0:00:00]} Rc6 {[%emt 0:00:33]} 50. Nf4+ {[%emt 0:00:00]} Kd7 $18 {[%emt 0:01:00]} 51. Kd5 {[%emt 0:00:00]} Bh6 {[%emt 0:00:41]} 52. Nd3 {[%emt 0:00:07]} Rf6 {[%emt 0:01:05]} 53. Rf2 {[%emt 0:00:50]} Rxf2 {[%emt 0:00:41]} 54. Nxf2 {[%emt 0:00:02]} Be3 {[%emt 0:00:02]} 55. Ng4 {[%emt 0:00:37]} Bg1 {[%emt 0:00:02]} 56. Nf6+ {[%emt 0:00:43]} Ke7 {[%emt 0:01:31]} 57. c6 {[%emt 0:00:09]} Bb6 {[%emt 0:00:17]} 58. Nxh7 {[%emt 0:00:31]} Bc7 {[%emt 0:00:18]} 59. Ng5 {[%emt 0:00:06]} Kf6 {[%emt 0:00:11]} 60. Ne6 {[%emt 0:00:17]} Be5 {[%emt 0:00:04]} 61. c7 {[%emt 0:00:08]} Bxc7 {[%emt 0:00:03]} 62. Nxc7 {[%emt 0:00:01]} Kg5 {[%emt 0:00:01]} 63. Ke5 {[%emt 0:00:23]} Kg4 {[%emt 0:00:14]} 64. Kf6 {[%emt 0:00:01]} g5 {[%emt 0:00:11]} 65. Ne6 {[%emt 0:00:10]} Kh3 {[%emt 0:00:06]} 66. Kxg5 {[%emt 0:00:05]} 1-0

[Event "360 One Wealth GP-4 2024"]
[Site "Mumbai"]
[Date "2024.03.17"]
[Round "7.3"]
[White "Arjun Singh"]
[Black "Ram Vishal Parab"]
[Result "0-1"]
[ECO "C84"]
[WhiteElo "1602"]
[BlackElo "1807"]
[Annotator "NA RC"]
[PlyCount "86"]
[EventDate "2024.03.10"]
[EventCountry "IND"]
[SourceTitle "playchess.com"]
[Source "ChessBase"]
[SourceQuality "1"]
[TimeControl "5400+30"]

1. e4 {[%emt 0:00:03]} e5 {[%emt 0:00:07]} 2. Nf3 {[%emt 0:00:07]} Nc6 {[%emt 0:00:08]} 3. Bb5 {[%emt 0:00:06]} a6 {[%emt 0:00:06]} 4. Ba4 {[%emt 0:00:10]} Nf6 {[%emt 0:00:10]} 5. O-O {[%emt 0:00:16]} Be7 {[%emt 0:00:06]} 6. d3 {[%emt 0:00:23]} b5 {[%emt 0:00:07]} 7. Bb3 {[%emt 0:00:07]} d6 {[%emt 0:00:04]} 8. a4 {[%emt 0:00:09]} b4 {[%emt 0:00:06]} 9. a5 {[%emt 0:00:17]} O-O {[%emt 0:00:09]} 10. Nbd2 {[%emt 0:00:04]} Be6 {[%emt 0:01:02] C84: Closed Ruy Lopez: Unusual White 6th moves.} 11. Nc4 {[%emt 0:00:10]} Nd7 {[%emt 0:01:06]} 12. Be3 {[%emt 0:00:31]} Bf6 {[%emt 0:01:18]} 13. c3 {[%emt 0:00:37]} bxc3 {[%emt 0:07:44]} 14. bxc3 {[%emt 0:00:16]} Rb8 {[%emt 0:01:36]} 15. Ncd2 {[%emt 0:03:32]} Bxb3 {[%emt 0:05:10]} 16. Nxb3 {[%emt 0:01:38]} Ne7 {[%emt 0:04:54]} 17. d4 {[%emt 0:02:29]} d5 {[%emt 0:03:48]} 18. Nfd2 {[%emt 0:00:41]} exd4 {[%emt 0:02:23]} 19. Bxd4 {[%emt 0:00:41]} Bxd4 {[%emt 0:02:10]} 20. cxd4 {[%emt 0:02:02]} dxe4 {[%emt 0:01:22]} 21. Nxe4 {[%emt 0:00:20]} Nd5 {[%emt 0:06:44]} 22. Nbc5 {[%emt 0:00:46]} Nxc5 {[%emt 0:06:57]} 23. Nxc5 {[%emt 0:00:52]} Qd6 {[%emt 0:00:49]} 24. Qd3 {[%emt 0:01:28]} Nf4 {[%emt 0:02:14]} 25. Qc4 {[%emt 0:03:15]} Rb5 {[%emt 0:03:21]} 26. g3 {[%emt 0:04:38]} Nh3+ {[%emt 0:02:33]} 27. Kg2 {[%emt 0:02:58]} Ng5 {[%emt 0:00:29]} 28. Rfc1 {[%emt 0:00:51]} Qf6 {[%emt 0:03:27]} 29. f4 {[%emt 0:01:50]} Rb2+ {[%emt 0:00:23]} 30. Rc2 {[%emt 0:00:24]} Rxc2+ {[%emt 0:00:28]} 31. Qxc2 {[%emt 0:00:13]} Qc6+ $19 {[%emt 0:00:01]} (31... Qxd4 $2 {loses.} 32. Rd1 Qe3 (32... Qf6 $2 33. Nd7 $18) 33. fxg5 $18) 32. Kf1 {[%emt 0:01:05]} Qh1+ {[%emt 0:00:13]} 33. Ke2 {[%emt 0:00:04]} Qxa1 {[%emt 0:00:17]} 34. fxg5 {[%emt 0:00:06]} Qxd4 {[%emt 0:00:12]} 35. Nxa6 {[%emt 0:00:15]} Re8+ {[%emt 0:00:17]} 36. Kf1 {[%emt 0:00:14]} Qa1+ {[%emt 0:00:16]} 37. Kg2 {[%emt 0:00:05]} Qe1 {[%emt 0:00:13]} 38. Qc4 {[%emt 0:00:19]} Re2+ {[%emt 0:00:34]} 39. Kh3 {[%emt 0:00:22]} Qf1+ {[%emt 0:01:26]} 40. Kg4 {[%emt 0:00:06]} Qd1 {[%emt 0:00:29]} 41. Kh3 {[%emt 0:00:22]} Qd7+ {[%emt 0:00:16]} 42. g4 {[%emt 0:00:06]} Re3+ {[%emt 0:00:03]} 43. Kh4 {[%emt 0:00:05]} Qd2 {[%emt 0:00:15]} 0-1

[Event "360 One Wealth GP-4 2024"]
[Site "Mumbai"]
[Date "2024.03.17"]
[Round "7.4"]
[White "Shah Mihir"]
[Black "Vivek Ashok Jadhav"]
[Result "1-0"]
[ECO "B76"]
[WhiteElo "1764"]
[BlackElo "1559"]
[Annotator "NA RC"]
[PlyCount "49"]
[EventDate "2024.03.10"]
[EventCountry "IND"]
[SourceTitle "playchess.com"]
[Source "ChessBase"]
[SourceQuality "1"]
[TimeControl "5400+30"]

1. e4 {[%emt 0:00:14]} c5 {[%emt 0:00:20]} 2. Nf3 {[%emt 0:00:11]} d6 {[%emt 0:00:35]} 3. d4 {[%emt 0:00:39]} cxd4 {[%emt 0:00:12]} 4. Nxd4 {[%emt 0:00:08]} Nf6 {[%emt 0:00:07]} 5. Nc3 {[%emt 0:00:05]} a6 {[%emt 0:00:44]} 6. Be3 {[%emt 0:00:05]} g6 {[%emt 0:03:19]} 7. f3 {[%emt 0:00:30]} Bg7 {[%emt 0:00:21]} 8. Qd2 {[%emt 0:00:06]} O-O {[%emt 0:01:30]} 9. O-O-O {[%emt 0:00:56]} b5 {[%emt 0:02:02]} 10. Bh6 {[%emt 0:02:42]} Bb7 {[%emt 0:01:29]} 11. h4 {[%emt 0:07:33]} Nc6 {[%emt 0:08:16]} 12. Nxc6 {[%emt 0:02:05]} Bxc6 {[%emt 0:00:21]} 13. h5 {[%emt 0:02:02]} Bxh6 {[%emt 0:04:31]} 14. Qxh6 {[%emt 0:00:16]} Qa5 {[%emt 0:01:19]} 15. Kb1 {[%emt 0:00:44]} b4 {[%emt 0:10:39]} 16. Nd5 {[%emt 0:10:21]} Bxd5 {[%emt 0:01:49]} 17. exd5 {[%emt 0:00:38]} g5 {[%emt 0:09:56]} 18. Qxg5+ {[%emt 0:01:04]} Kh8 {[%emt 0:00:07]} 19. Rh4 {[%emt 0:12:59]} Rac8 {[%emt 0:08:41]} 20. Rhd4 {[%emt 0:08:05]} Qb6 {[%emt 0:02:47]} 21. g4 {[%emt 0:02:03]} a5 {[%emt 0:06:35]} 22. Qf4 {[%emt 0:01:57]} Nd7 {[%emt 0:04:40]} 23. Bd3 {[%emt 0:03:56]} Ne5 {[%emt 0:00:46]} 24. Bf5 {[%emt 0:00:32]} Ng6 {[%emt 0:06:19]} 25. Qh6 {[%emt 0:00:40]} 1-0

[Event "360 One Wealth GP-4 2024"]
[Site "Mumbai"]
[Date "2024.03.17"]
[Round "7.5"]
[White "Iyer Arvind"]
[Black "Isaiah Chris Nazareth"]
[Result "1-0"]
[ECO "B22"]
[WhiteElo "1897"]
[BlackElo "1698"]
[Annotator "NA RC"]
[PlyCount "93"]
[EventDate "2024.03.10"]
[EventCountry "IND"]
[SourceTitle "playchess.com"]
[Source "ChessBase"]
[SourceQuality "1"]
[TimeControl "5400+30"]

1. e4 {[%emt 0:01:14]} c5 {[%emt 0:00:07]} 2. c3 {[%emt 0:00:11]} d5 {[%emt 0:00:09]} 3. exd5 {[%emt 0:00:10]} Qxd5 {[%emt 0:00:06]} 4. d4 {[%emt 0:00:07]} Nc6 {[%emt 0:00:17]} 5. Nf3 {[%emt 0:00:07]} Bf5 {[%emt 0:00:09]} 6. Be3 {[%emt 0:00:20]} O-O-O {[%emt 0:02:04] B22: Sicilian: 2 c3.} 7. Be2 {[%emt 0:01:59]} cxd4 {[%emt 0:01:41]} 8. cxd4 {[%emt 0:00:55]} Bxb1 {[%emt 0:00:12]} 9. Qxb1 {[%emt 0:01:27]} e6 {[%emt 0:03:09]} 10. O-O {[%emt 0:01:44]} h6 {[%emt 0:00:41] [#]} (10... Kb8 $142 11. b4 Qd7) 11. b4 $1 {[%emt 0:05:45]} Bxb4 {[%emt 0:07:24] [#]} 12. Ne5 $1 {[%emt 0:00:19]} Nxd4 $2 {[%emt 0:29:57]} (12... Nge7 13. Bf3 (13. Nxf7 Bc3 $18) 13... Qa5 14. Nxf7 Rhf8) 13. Bxd4 {[%emt 0:00:39]} Qxd4 {[%emt 0:00:15]} 14. Nxf7 {[%emt 0:00:22]} Nf6 {[%emt 0:06:23]} 15. Rd1 {[%emt 0:01:29]} Qb6 {[%emt 0:00:51]} 16. Nxd8 {[%emt 0:00:46]} Rxd8 {[%emt 0:00:51]} 17. Rxd8+ {[%emt 0:02:06]} Kxd8 {[%emt 0:00:08]} 18. a3 {[%emt 0:00:15]} Bc5 {[%emt 0:02:07]} 19. Qxb6+ {[%emt 0:00:07]} axb6 {[%emt 0:01:14]} 20. Bf3 {[%emt 0:00:06]} Nd5 {[%emt 0:02:14]} 21. Rd1 {[%emt 0:02:21]} Bxa3 {[%emt 0:00:20]} 22. Bxd5 {[%emt 0:00:05]} exd5 {[%emt 0:00:02]} 23. Rxd5+ {[%emt 0:00:06]} Ke7 {[%emt 0:01:08]} 24. Kf1 {[%emt 0:00:14]} Ke6 {[%emt 0:01:01]} 25. Rd8 {[%emt 0:00:04]} Bd6 {[%emt 0:00:27]} 26. h3 {[%emt 0:00:21]} b5 {[%emt 0:00:14]} 27. Ke2 {[%emt 0:00:06]} b4 {[%emt 0:00:31]} 28. Kd3 {[%emt 0:00:04]} b6 {[%emt 0:00:13]} 29. Rg8 {[%emt 0:01:02]} Kf7 {[%emt 0:05:52]} 30. Ra8 {[%emt 0:00:14]} Bc5 {[%emt 0:01:12]} 31. f4 {[%emt 0:00:55]} Kf6 {[%emt 0:03:10]} 32. g4 {[%emt 0:01:35]} Ke6 {[%emt 0:01:12]} 33. Rg8 {[%emt 0:00:10]} Kf7 {[%emt 0:02:24]} 34. Rc8 {[%emt 0:00:02]} Kf6 {[%emt 0:01:07]} 35. Rc6+ {[%emt 0:00:06]} Kf7 {[%emt 0:00:10]} 36. f5 {[%emt 0:01:02]} Ke7 {[%emt 0:00:50]} 37. Kc4 {[%emt 0:00:04]} Kf7 {[%emt 0:00:20]} 38. h4 {[%emt 0:01:13]} Ke7 {[%emt 0:04:05]} 39. g5 {[%emt 0:00:12]} hxg5 {[%emt 0:00:04]} 40. hxg5 {[%emt 0:00:05]} Kf7 {[%emt 0:04:35]} 41. Rc7+ {[%emt 0:00:04]} Kf8 {[%emt 0:06:32]} 42. g6 {[%emt 0:00:14]} Kg8 {[%emt 0:00:21]} 43. Rc8+ {[%emt 0:00:08]} Bf8 {[%emt 0:00:01]} 44. Rb8 {[%emt 0:00:11]} b3 {[%emt 0:02:16]} 45. Kxb3 {[%emt 0:00:08]} b5 {[%emt 0:00:09]} 46. Kc3 {[%emt 0:00:15]} b4+ {[%emt 0:00:06]} 47. Kb3 {[%emt 0:00:04]} 1-0

[Event "360 One Wealth GP-4 2024"]
[Site "Mumbai"]
[Date "2024.03.17"]
[Round "7.6"]
[White "Mishra Sanjeev"]
[Black "Boricha Yohan"]
[Result "1-0"]
[ECO "B31"]
[WhiteElo "1833"]
[BlackElo "1840"]
[Annotator "NA RC"]
[PlyCount "39"]
[EventDate "2024.03.10"]
[EventCountry "IND"]
[SourceTitle "playchess.com"]
[Source "ChessBase"]
[SourceQuality "1"]
[TimeControl "5400+30"]

1. e4 {[%emt 0:00:14]} c5 {[%emt 0:01:58]} 2. Nf3 {[%emt 0:00:06]} Nc6 {[%emt 0:00:22]} 3. Bb5 {[%emt 0:00:23]} g6 {[%emt 0:00:11]} 4. O-O {[%emt 0:00:06]} Nf6 {[%emt 0:00:10]} 5. Re1 {[%emt 0:00:12]} Bg7 {[%emt 0:00:20]} 6. c3 {[%emt 0:00:06]} Qb6 {[%emt 0:01:09] B31: Sicilian: 2...Nc6 3 Bb5 g6.} 7. a4 {[%emt 0:00:10]} a6 {[%emt 0:03:18]} 8. Bxc6 {[%emt 0:01:04]} Qxc6 {[%emt 0:00:02]} 9. e5 {[%emt 0:00:41]} Nd5 {[%emt 0:00:34]} 10. d4 {[%emt 0:00:19]} cxd4 {[%emt 0:18:54]} 11. Nxd4 {[%emt 0:00:53]} Qc7 {[%emt 0:00:58]} 12. Nf3 {[%emt 0:07:45]} e6 {[%emt 0:02:32]} 13. Nbd2 {[%emt 0:00:56]} O-O {[%emt 0:07:39]} 14. a5 {[%emt 0:01:21]} (14. c4 $16 Nb4 15. Ne4) 14... b6 {[%emt 0:03:11]} 15. axb6 {[%emt 0:00:45]} Nxb6 {[%emt 0:00:18]} 16. Ne4 {[%emt 0:02:06]} Nc4 {[%emt 0:08:25]} 17. Bf4 {[%emt 0:03:14]} Bb7 {[%emt 0:02:39]} 18. b3 {[%emt 0:13:56]} Nxe5 {[%emt 0:02:00]} 19. Nxe5 {[%emt 0:00:26]} Bxe5 $18 {[%emt 0:00:02]} (19... Bxe4 {keeps fighting.} 20. Rxe4 d5) 20. Nf6+ {[%emt 0:00:14]} 1-0

[Event "360 One Wealth GP-4 2024"]
[Site "Mumbai"]
[Date "2024.03.17"]
[Round "7.7"]
[White "Kolumum Raja, Aravind"]
[Black "Kapadi Yash"]
[Result "1/2-1/2"]
[ECO "A58"]
[WhiteElo "1896"]
[BlackElo "1779"]
[Annotator "NA RC"]
[PlyCount "81"]
[EventDate "2024.03.10"]
[EventCountry "IND"]
[SourceTitle "playchess.com"]
[Source "ChessBase"]
[SourceQuality "1"]
[TimeControl "5400+30"]

1. d4 {[%emt 0:00:08]} Nf6 {[%emt 0:06:14]} 2. c4 {[%emt 0:00:10]} c5 {[%emt 0:00:06]} 3. d5 {[%emt 0:01:44]} b5 {[%emt 0:00:07]} 4. cxb5 {[%emt 0:00:16]} a6 {[%emt 0:00:06]} 5. bxa6 {[%emt 0:01:00]} g6 {[%emt 0:00:36]} 6. g3 {[%emt 0:01:53]} d6 {[%emt 0:00:10]} 7. Bg2 {[%emt 0:02:04]} Bxa6 {[%emt 0:00:26]} 8. Nc3 {[%emt 0:01:19]} Bg7 {[%emt 0:00:07]} 9. Nf3 {[%emt 0:00:55]} O-O {[%emt 0:00:09]} 10. O-O {[%emt 0:01:15]} Nbd7 {[%emt 0:00:04]} 11. Re1 {[%emt 0:01:56]} Qa5 {[%emt 0:00:36] is the legacy move (11...Qb6).} 12. Qc2 {[%emt 0:04:36]} Rfb8 {[%emt 0:01:27] A58: Benko/Volga Gambit: Lines with 5 bxa6.} 13. Bd2 {[%emt 0:04:08]} Ng4 {[%emt 0:02:20]} (13... Qb6 $1 $11) 14. h3 {[%emt 0:04:19]} Nge5 {[%emt 0:00:11]} 15. Nxe5 {[%emt 0:02:16]} Nxe5 {[%emt 0:00:08]} 16. Ne4 $146 {[%emt 0:01:49]} ({Predecessor:} 16. b3 c4 17. f4 Nd7 18. e4 Bd4+ 19. Kh2 cxb3 20. axb3 Qb4 21. Ne2 Rc8 22. Bxb4 Rxc2 23. Nxd4 Rd2 24. Bxd2 Nc5 25. b4 Nd7 26. b5 {1-0 Legg,J (1735)-Manaschev,E (800) IECG TE.2005.P.01802 email}) 16... Qb6 {[%emt 0:04:33]} 17. Bc3 {[%emt 0:03:09]} Bb7 {[%emt 0:04:47]} 18. Red1 {[%emt 0:03:55]} Ba6 {[%emt 0:00:19]} 19. b3 {[%emt 0:02:32]} h6 {[%emt 0:07:09]} 20. Rab1 {[%emt 0:02:03]} f5 {[%emt 0:02:15]} 21. Nd2 {[%emt 0:03:35]} Bxe2 {[%emt 0:00:47]} 22. Re1 {[%emt 0:09:03]} Bd3 {[%emt 0:00:11]} 23. Qb2 {[%emt 0:00:08]} Bxb1 {[%emt 0:01:07]} 24. Qxb1 {[%emt 0:08:44]} Qa7 {[%emt 0:01:50]} 25. f4 {[%emt 0:07:55]} Nf3+ {[%emt 0:00:43]} 26. Nxf3 {[%emt 0:02:21]} Bxc3 {[%emt 0:00:07]} 27. Re6 {[%emt 0:02:54]} Bf6 {[%emt 0:01:37]} 28. Re2 {[%emt 0:05:05]} c4+ {[%emt 0:00:12]} 29. Kh2 {[%emt 0:01:05]} cxb3 {[%emt 0:00:14]} 30. axb3 {[%emt 0:00:42]} Qb6 {[%emt 0:00:39]} 31. Nd2 {[%emt 0:02:46]} Ra1 {[%emt 0:03:22]} 32. Nc4 {[%emt 0:08:48]} Rxb1 {[%emt 0:00:06]} 33. Nxb6 {[%emt 0:00:21]} Rxb6 {[%emt 0:00:06]} 34. g4 {[%emt 0:01:56]} fxg4 {[%emt 0:00:06]} 35. hxg4 {[%emt 0:00:09]} R6xb3 {[%emt 0:00:04]} 36. Rc2 {[%emt 0:02:29]} R1b2 {[%emt 0:00:08]} 37. Rc8+ {[%emt 0:00:16]} Kf7 {[%emt 0:00:03]} 38. Rc1 {[%emt 0:01:09]} Rb1 {[%emt 0:00:05]} 39. Rc2 {[%emt 0:00:17]} R1b2 {[%emt 0:00:01]} 40. Rc1 {[%emt 0:00:09]} Rb1 {[%emt 0:00:04]} 41. Rc2 $19 {[%emt 0:00:13]} 1/2-1/2

[Event "360 One Wealth GP-4 2024"]
[Site "Mumbai"]
[Date "2024.03.17"]
[Round "7.8"]
[White "Pasbola Samvid"]
[Black "Soni Deepak R"]
[Result "1-0"]
[ECO "B19"]
[WhiteElo "1538"]
[BlackElo "1681"]
[Annotator "NA RC"]
[PlyCount "127"]
[EventDate "2024.03.10"]
[EventCountry "IND"]
[SourceTitle "playchess.com"]
[Source "ChessBase"]
[SourceQuality "1"]
[TimeControl "5400+30"]

1. e4 {[%emt 0:00:01]} c6 {[%emt 0:00:25]} 2. d4 {[%emt 0:00:16]} d5 {[%emt 0:00:22]} 3. Nc3 {[%emt 0:00:18]} dxe4 {[%emt 0:00:23]} 4. Nxe4 {[%emt 0:00:01]} Bf5 {[%emt 0:00:20]} 5. Ng3 {[%emt 0:00:16]} Bg6 {[%emt 0:00:09]} 6. h4 {[%emt 0:00:11]} h6 {[%emt 0:00:38]} 7. Nf3 {[%emt 0:00:09]} Nd7 {[%emt 0:00:07]} 8. Bd3 {[%emt 0:00:34]} Bxd3 {[%emt 0:04:50]} 9. Qxd3 {[%emt 0:00:33]} e6 {[%emt 0:01:51]} 10. Bd2 {[%emt 0:02:02]} Ngf6 {[%emt 0:01:57]} 11. O-O-O {[%emt 0:02:09]} Be7 {[%emt 0:03:11]} 12. Kb1 {[%emt 0:05:43]} O-O {[%emt 0:00:31]} 13. Ne4 {[%emt 0:01:22]} Nxe4 {[%emt 0:01:29]} 14. Qxe4 {[%emt 0:01:07]} Nf6 {[%emt 0:00:12]} 15. Qe2 {[%emt 0:00:09]} Qd5 {[%emt 0:02:47]} 16. Rhe1 {[%emt 0:05:42]} b5 {[%emt 0:08:22]} 17. Ne5 {[%emt 0:02:23]} Nd7 {[%emt 0:21:43]} 18. Qg4 {[%emt 0:06:51]} f5 {[%emt 0:06:50]} 19. Qg3 {[%emt 0:05:09]} Nxe5 {[%emt 0:10:28]} 20. dxe5 {[%emt 0:02:28]} Qc4 {[%emt 0:02:05]} 21. Bxh6 {[%emt 0:02:30]} Qg4 {[%emt 0:00:47]} 22. Qxg4 {[%emt 0:00:05]} fxg4 {[%emt 0:00:05]} 23. Be3 {[%emt 0:00:07]} Bxh4 {[%emt 0:00:40]} 24. g3 {[%emt 0:00:16]} Bd8 {[%emt 0:01:51]} 25. Rd6 {[%emt 0:06:41]} Bb6 {[%emt 0:11:49]} 26. Bxb6 {[%emt 0:03:28]} axb6 {[%emt 0:00:29]} 27. Rxc6 {[%emt 0:01:56]} Rxf2 {[%emt 0:00:19]} 28. Rxe6 {[%emt 0:00:24]} Rg2 {[%emt 0:02:59]} 29. Rxb6 {[%emt 0:01:45]} Rxg3 {[%emt 0:00:33]} 30. Rxb5 {[%emt 0:00:34]} Rf8 {[%emt 0:00:42]} 31. e6 {[%emt 0:02:13]} Re3 {[%emt 0:00:31]} 32. Rg1 {[%emt 0:01:35]} Rxe6 {[%emt 0:05:27]} 33. Rb4 {[%emt 0:00:17]} g3 {[%emt 0:00:37]} 34. Rg4 {[%emt 0:06:07]} Rf3 {[%emt 0:00:23]} 35. a3 {[%emt 0:01:50]} Ree3 {[%emt 0:00:09]} 36. Ka2 {[%emt 0:00:50]} Kf7 {[%emt 0:00:17]} 37. a4 {[%emt 0:01:52]} Kf6 {[%emt 0:00:29]} 38. a5 {[%emt 0:01:28]} g5 {[%emt 0:02:16]} 39. a6 {[%emt 0:01:52]} Re6 {[%emt 0:00:23]} 40. Ra4 {[%emt 0:02:38]} Re8 {[%emt 0:00:45]} 41. a7 {[%emt 0:01:39]} Ra8 {[%emt 0:00:05]} 42. Ra5 {[%emt 0:00:20]} Kg6 {[%emt 0:01:14]} 43. b4 {[%emt 0:00:34]} Kh5 {[%emt 0:03:27]} 44. b5 {[%emt 0:05:18]} Kh4 {[%emt 0:00:31]} 45. b6 {[%emt 0:01:39]} Rf7 {[%emt 0:00:13]} 46. c4 {[%emt 0:01:45]} Rb7 {[%emt 0:01:04]} 47. Rb5 {[%emt 0:10:41]} Kh3 {[%emt 0:00:57]} 48. Rxg5 {[%emt 0:00:46]} Rxb6 {[%emt 0:00:15]} 49. R5xg3+ {[%emt 0:01:29]} Kh2 {[%emt 0:00:45]} 50. R3g2+ {[%emt 0:02:39]} Kh3 {[%emt 0:00:11]} 51. Rg7 {[%emt 0:00:31]} Kh2 {[%emt 0:02:40]} 52. R1g6 {[%emt 0:00:47]} Rxa7+ {[%emt 0:01:27]} 53. Rxa7 {[%emt 0:00:28]} Rxg6 {[%emt 0:00:02]} 54. Rf7 {[%emt 0:01:14]} Rb6 {[%emt 0:00:51]} 55. Ka3 {[%emt 0:02:21]} Kg3 {[%emt 0:00:11]} 56. Ka4 {[%emt 0:00:27]} Kg4 {[%emt 0:00:17]} 57. c5 {[%emt 0:00:51]} Rb1 {[%emt 0:00:21]} 58. c6 {[%emt 0:00:50]} Kg5 {[%emt 0:03:22]} 59. Rb7 {[%emt 0:03:15]} Rc1 {[%emt 0:01:26]} 60. Kb5 {[%emt 0:01:22]} Kf6 {[%emt 0:00:00]} 61. Kb6 {[%emt 0:02:32]} Ke6 {[%emt 0:02:13]} 62. Kc7 {[%emt 0:02:06]} Ke7 {[%emt 0:00:00]} 63. Kc8+ {[%emt 0:00:47]} Kd6 {[%emt 0:00:36]} 64. c7 {[%emt 0:04:50]} 1-0